[Event "Titled Tuesday Blitz October 11 Early 2022"]
[White "Rodriguez Santiago, Jaime"]
[Black "Fernandez Hernandez, Gerardo"]
[WhiteFideId "3100898"]
[BlackFideId "2207400"]
[WhiteElo "2025"]
[BlackElo "2152"]
[Result "0-1"]
[Round "05"]
[TimeControl "180+1"]
[Date "2022.10.12"]
[WhiteClock "0:00:38"]
[BlackClock "0:00:14"]

1. c4 {[%clk 0:03:00]}  e5 {[%clk 0:02:59]} 2. Nc3 {[%clk 0:03:00]}  d6 {[%clk 0:02:58]} 3. g3 {[%clk 0:02:59]}  g6 {[%clk 0:02:59]} 4. Bg2 {[%clk 0:03:00]}  Bg7 {[%clk 0:02:59]} 5. e3 {[%clk 0:02:56]}  f5 {[%clk 0:02:59]} 6. Nge2 {[%clk 0:02:56]}  Nf6 {[%clk 0:02:59]} 7. O-O {[%clk 0:02:56]}  O-O {[%clk 0:02:58]} 8. b3 {[%clk 0:02:55]}  c6 {[%clk 0:02:57]} 9. Bb2 {[%clk 0:02:55]}  Be6 {[%clk 0:02:57]} 10. d3 {[%clk 0:02:54]}  d5 {[%clk 0:02:55]} 11. f4 {[%clk 0:02:51]}  e4 {[%clk 0:02:40]} 12. cxd5 {[%clk 0:02:39]}  cxd5 {[%clk 0:02:38]} 13. dxe4 {[%clk 0:02:37]}  dxe4 {[%clk 0:02:37]} 14. Nd4 {[%clk 0:02:38]}  Qe7 {[%clk 0:02:27]} 15. h3 {[%clk 0:02:36]}  Rd8 {[%clk 0:02:21]} 16. Rf2 {[%clk 0:02:31]}  Nc6 {[%clk 0:02:17]} 17. Rd2 {[%clk 0:02:31]}  Nxd4 {[%clk 0:02:14]} 18. Rxd4 {[%clk 0:02:28]}  Rxd4 {[%clk 0:02:11]} 19. Qxd4 {[%clk 0:02:25]}  Nh5 {[%clk 0:02:06]} 20. Qd2 {[%clk 0:02:17]}  Nxg3 {[%clk 0:02:03]} 21. Kh2 {[%clk 0:02:15]}  Rd8 {[%clk 0:01:55]} 22. Qf2 {[%clk 0:02:11]}  Nh5 {[%clk 0:01:53]} 23. Bf1 {[%clk 0:02:03]}  Qc7 {[%clk 0:01:38]} 24. Rc1 {[%clk 0:02:00]}  Qe7 {[%clk 0:01:20]} 25. Nb5 {[%clk 0:01:55]}  a6 {[%clk 0:01:16]} 26. Nd4 {[%clk 0:01:33]}  Bf7 {[%clk 0:01:08]} 27. Qe1 {[%clk 0:01:23]}  Nxf4 {[%clk 0:01:00]} 28. Qg3 {[%clk 0:00:59]}  Ne6 {[%clk 0:00:36]} 29. Nxe6 {[%clk 0:00:53]}  Bxb2 {[%clk 0:00:28]} 30. Nxd8 {[%clk 0:00:50]}  Be5 {[%clk 0:00:27]} 31. Nxf7 {[%clk 0:00:40]}  Bxg3+ {[%clk 0:00:26]} 32. Kxg3 {[%clk 0:00:41]}  Kxf7 {[%clk 0:00:24]} 33. Rc8 {[%clk 0:00:40]}  Qd6+ {[%clk 0:00:23]} 34. Kf2 {[%clk 0:00:39]}  Qd2+ {[%clk 0:00:22]} 35. Be2 {[%clk 0:00:40]}  f4 {[%clk 0:00:20]} 36. exf4 {[%clk 0:00:39]}  Qxf4+ {[%clk 0:00:20]} 37. Ke1 {[%clk 0:00:39]}  e3 {[%clk 0:00:18]} 38. Rc4 {[%clk 0:00:37]}  Qg3+ {[%clk 0:00:17]} 39. Kd1 {[%clk 0:00:38]}  Qg1+ {[%clk 0:00:17]} 40. Kc2 {[%clk 0:00:37]}  Qe1 {[%clk 0:00:16]} 41. Kd3 {[%clk 0:00:37]}  Qd2+ {[%clk 0:00:16]} 42. Ke4 {[%clk 0:00:37]}  Qxe2 {[%clk 0:00:16]} 43. Rc8 {[%clk 0:00:38]}  Qd2 {[%clk 0:00:15]} 44. Rc7+ {[%clk 0:00:37]}  Ke8 {[%clk 0:00:14]} 45. Rxb7 {[%clk 0:00:37]}  e2 {[%clk 0:00:14]} 46. Rb8+ {[%clk 0:00:38]}  Kd7 {[%clk 0:00:14]} 47. Rb7+ {[%clk 0:00:38]}  Kc8 {[%clk 0:00:14]} 0-1


[Site "https://www.chess.com"]

[Event "Titled Tuesday Blitz October 11 Early 2022"]
[White "Sailer, Mike"]
[Black "Parpiev, Isaak"]
[WhiteFideId "2012901"]
[BlackFideId "34281576"]
[WhiteElo "2109"]
[BlackElo "2100"]
[Result "0-1"]
[Round "05"]
[TimeControl "180+1"]
[Date "2022.10.12"]
[WhiteClock "0:00:58"]
[BlackClock "0:00:25"]

1. d4 {[%clk 0:02:58]}  Nf6 {[%clk 0:02:59]} 2. Bf4 {[%clk 0:02:56]}  d5 {[%clk 0:02:55]} 3. Nc3 {[%clk 0:02:54]}  c5 {[%clk 0:02:55]} 4. e4 {[%clk 0:02:52]}  dxe4 {[%clk 0:02:05]} 5. d5 {[%clk 0:02:50]}  g6 {[%clk 0:01:56]} 6. Qd2 {[%clk 0:02:32]}  Bg7 {[%clk 0:01:55]} 7. d6 {[%clk 0:02:24]}  e6 {[%clk 0:01:49]} 8. Nb5 {[%clk 0:02:10]}  Na6 {[%clk 0:01:47]} 9. O-O-O {[%clk 0:02:00]}  O-O {[%clk 0:01:39]} 10. h4 {[%clk 0:01:46]}  h5 {[%clk 0:01:11]} 11. Bg5 {[%clk 0:01:30]}  Bd7 {[%clk 0:01:07]} 12. Nc7 {[%clk 0:01:30]}  Nxc7 {[%clk 0:00:52]} 13. dxc7 {[%clk 0:01:30]}  Qxc7 {[%clk 0:00:53]} 14. Bxf6 {[%clk 0:01:28]}  Bxf6 {[%clk 0:00:54]} 15. Qxd7 {[%clk 0:01:27]}  Qa5 {[%clk 0:00:39]} 16. Bc4 {[%clk 0:01:17]}  Rad8 {[%clk 0:00:37]} 17. Qb5 {[%clk 0:01:17]}  Rxd1+ {[%clk 0:00:25]} 18. Kxd1 {[%clk 0:01:17]}  Rd8+ {[%clk 0:00:26]} 19. Ke2 {[%clk 0:00:57]}  Qd2+ {[%clk 0:00:24]} 20. Kf1 {[%clk 0:00:58]}  Qd1# {[%clk 0:00:25]} 0-1


[Site "https://www.chess.com"]

[Event "Titled Tuesday Blitz October 11 Early 2022"]
[White "Sanchez, Robert"]
[Black "Mortazavi, Ali"]
[WhiteFideId "2034360"]
[BlackFideId "401323"]
[WhiteElo "2411"]
[BlackElo "2339"]
[Result "1-0"]
[Round "05"]
[TimeControl "180+1"]
[Date "2022.10.12"]
[WhiteClock "0:00:10"]
[BlackClock "0:00:01"]

1. Nf3 {[%clk 0:03:00]}  g6 {[%clk 0:01:04]} 2. e4 {[%clk 0:02:56]}  d6 {[%clk 0:01:04]} 3. d4 {[%clk 0:02:57]}  Bg7 {[%clk 0:01:04]} 4. Nc3 {[%clk 0:02:57]}  a6 {[%clk 0:01:03]} 5. h3 {[%clk 0:02:56]}  b5 {[%clk 0:01:01]} 6. a3 {[%clk 0:02:57]}  Bb7 {[%clk 0:01:00]} 7. Bd3 {[%clk 0:02:56]}  Nd7 {[%clk 0:00:59]} 8. O-O {[%clk 0:02:56]}  c5 {[%clk 0:00:58]} 9. d5 {[%clk 0:02:53]}  Ngf6 {[%clk 0:00:58]} 10. Bg5 {[%clk 0:02:52]}  O-O {[%clk 0:00:58]} 11. Re1 {[%clk 0:02:48]}  Qc7 {[%clk 0:00:56]} 12. Qc1 {[%clk 0:02:47]}  Rfe8 {[%clk 0:00:56]} 13. Bh6 {[%clk 0:02:47]}  Bh8 {[%clk 0:00:56]} 14. Qg5 {[%clk 0:02:39]}  b4 {[%clk 0:00:47]} 15. Nd1 {[%clk 0:02:22]}  c4 {[%clk 0:00:39]} 16. Bf1 {[%clk 0:02:21]}  c3 {[%clk 0:00:39]} 17. axb4 {[%clk 0:02:16]}  cxb2 {[%clk 0:00:39]} 18. Nxb2 {[%clk 0:02:16]}  Nxe4 {[%clk 0:00:25]} 19. Rxe4 {[%clk 0:02:11]}  Bxb2 {[%clk 0:00:25]} 20. Rae1 {[%clk 0:02:05]}  Bf6 {[%clk 0:00:24]} 21. Qd2 {[%clk 0:02:01]}  Rac8 {[%clk 0:00:23]} 22. c4 {[%clk 0:02:00]}  Qb6 {[%clk 0:00:19]} 23. Be3 {[%clk 0:01:55]}  Qc7 {[%clk 0:00:19]} 24. Bd4 {[%clk 0:01:49]}  Bxd4 {[%clk 0:00:17]} 25. Qxd4 {[%clk 0:01:47]}  Nf6 {[%clk 0:00:18]} 26. Rh4 {[%clk 0:01:35]}  Rb8 {[%clk 0:00:17]} 27. Qf4 {[%clk 0:01:31]}  a5 {[%clk 0:00:14]} 28. b5 {[%clk 0:01:26]}  a4 {[%clk 0:00:14]} 29. Qh6 {[%clk 0:01:26]}  e5 {[%clk 0:00:06]} 30. Ng5 {[%clk 0:01:21]}  a3 {[%clk 0:00:06]} 31. Nxh7 {[%clk 0:01:13]}  Nxh7 {[%clk 0:00:06]} 32. Qxh7+ {[%clk 0:01:14]}  Kf8 {[%clk 0:00:07]} 33. Ra1 {[%clk 0:00:58]}  Ra8 {[%clk 0:00:08]} 34. Qh6+ {[%clk 0:00:52]}  Ke7 {[%clk 0:00:08]} 35. Qg5+ {[%clk 0:00:52]}  Kd7 {[%clk 0:00:08]} 36. Rh7 {[%clk 0:00:51]}  Re7 {[%clk 0:00:08]} 37. Be2 {[%clk 0:00:48]}  Qd8 {[%clk 0:00:05]} 38. c5 {[%clk 0:00:42]}  dxc5 {[%clk 0:00:03]} 39. b6 {[%clk 0:00:39]}  Bxd5 {[%clk 0:00:02]} 40. Bb5+ {[%clk 0:00:36]}  Kc8 {[%clk 0:00:02]} 41. Qf6 {[%clk 0:00:23]}  Kb7 {[%clk 0:00:02]} 42. Qg5 {[%clk 0:00:19]}  a2 {[%clk 0:00:02]} 43. Qd2 {[%clk 0:00:18]}  Be6 {[%clk 0:00:02]} 44. Bd3 {[%clk 0:00:17]}  Qxb6 {[%clk 0:00:01]} 45. Be4+ {[%clk 0:00:17]}  Kb8 {[%clk 0:00:01]} 46. Rh8+ {[%clk 0:00:15]}  Bc8 {[%clk 0:00:01]} 47. Rxa2 {[%clk 0:00:10]} 1-0


[Site "https://www.chess.com"]

[Event "Titled Tuesday Blitz October 11 Early 2022"]
[White "Sernecki, Franciszek"]
[Black "Jiganchine, Roman"]
[WhiteFideId "1169297"]
[BlackFideId "2603667"]
[WhiteElo "2209"]
[BlackElo "2297"]
[Result "0-1"]
[Round "05"]
[TimeControl "180+1"]
[Date "2022.10.12"]
[WhiteClock "0:00:16"]
[BlackClock "0:00:20"]

1. c4 {[%clk 0:02:08]}  e6 {[%clk 0:02:58]} 2. e4 {[%clk 0:02:07]}  d5 {[%clk 0:02:57]} 3. exd5 {[%clk 0:02:08]}  exd5 {[%clk 0:02:57]} 4. d4 {[%clk 0:02:09]}  Nf6 {[%clk 0:02:53]} 5. Nf3 {[%clk 0:02:09]}  c6 {[%clk 0:02:49]} 6. Nc3 {[%clk 0:02:09]}  Be7 {[%clk 0:02:49]} 7. Be2 {[%clk 0:02:09]}  O-O {[%clk 0:02:49]} 8. O-O {[%clk 0:02:09]}  Bg4 {[%clk 0:02:49]} 9. Bg5 {[%clk 0:02:09]}  Nbd7 {[%clk 0:02:45]} 10. Ne5 {[%clk 0:02:05]}  Be6 {[%clk 0:02:33]} 11. Nxd7 {[%clk 0:02:02]}  Qxd7 {[%clk 0:02:28]} 12. Bxf6 {[%clk 0:02:01]}  Bxf6 {[%clk 0:02:27]} 13. cxd5 {[%clk 0:02:02]}  Bxd5 {[%clk 0:02:26]} 14. Qd3 {[%clk 0:01:55]}  a5 {[%clk 0:02:15]} 15. Rad1 {[%clk 0:01:29]}  Rfe8 {[%clk 0:02:15]} 16. Rfe1 {[%clk 0:01:25]}  Rad8 {[%clk 0:02:14]} 17. b3 {[%clk 0:01:21]}  h6 {[%clk 0:02:11]} 18. h3 {[%clk 0:01:20]}  Qd6 {[%clk 0:02:11]} 19. Rd2 {[%clk 0:01:17]}  Qf4 {[%clk 0:02:08]} 20. Red1 {[%clk 0:01:15]}  Rd7 {[%clk 0:01:59]} 21. Bf3 {[%clk 0:01:09]}  Bxf3 {[%clk 0:01:57]} 22. Qxf3 {[%clk 0:01:10]}  Qxf3 {[%clk 0:01:53]} 23. gxf3 {[%clk 0:01:11]}  c5 {[%clk 0:01:40]} 24. Ne2 {[%clk 0:01:07]}  cxd4 {[%clk 0:01:36]} 25. Kg2 {[%clk 0:00:58]}  Red8 {[%clk 0:01:23]} 26. f4 {[%clk 0:00:51]}  g6 {[%clk 0:01:20]} 27. Kf3 {[%clk 0:00:49]}  Kg7 {[%clk 0:01:19]} 28. Ke4 {[%clk 0:00:49]}  Re8+ {[%clk 0:00:50]} 29. Kf3 {[%clk 0:00:45]}  Red8 {[%clk 0:00:47]} 30. Ke4 {[%clk 0:00:42]}  Re8+ {[%clk 0:00:41]} 31. Kd3 {[%clk 0:00:39]}  Rc8 {[%clk 0:00:35]} 32. Rc1 {[%clk 0:00:38]}  Rdc7 {[%clk 0:00:30]} 33. Rxc7 {[%clk 0:00:37]}  Rxc7 {[%clk 0:00:29]} 34. Nxd4 {[%clk 0:00:38]}  Bxd4 {[%clk 0:00:26]} 35. Kxd4 {[%clk 0:00:38]}  Rd7+ {[%clk 0:00:20]} 36. Ke3 {[%clk 0:00:38]}  Rxd2 {[%clk 0:00:20]} 37. Kxd2 {[%clk 0:00:39]}  Kf6 {[%clk 0:00:21]} 38. Ke3 {[%clk 0:00:38]}  Kf5 {[%clk 0:00:21]} 39. Kf3 {[%clk 0:00:36]}  b5 {[%clk 0:00:21]} 40. a3 {[%clk 0:00:35]}  b4 {[%clk 0:00:21]} 41. axb4 {[%clk 0:00:30]}  axb4 {[%clk 0:00:21]} 42. Ke3 {[%clk 0:00:31]}  h5 {[%clk 0:00:20]} 43. Kf3 {[%clk 0:00:30]}  h4 {[%clk 0:00:20]} 44. Ke3 {[%clk 0:00:30]}  f6 {[%clk 0:00:20]} 45. Kf3 {[%clk 0:00:29]}  g5 {[%clk 0:00:19]} 46. fxg5 {[%clk 0:00:30]}  fxg5 {[%clk 0:00:19]} 47. Kg2 {[%clk 0:00:12]}  g4 {[%clk 0:00:18]} 48. Kh2 {[%clk 0:00:10]}  Kf4 {[%clk 0:00:18]} 49. Kg2 {[%clk 0:00:10]}  gxh3+ {[%clk 0:00:17]} 50. Kxh3 {[%clk 0:00:10]}  Kf3 {[%clk 0:00:17]} 51. Kxh4 {[%clk 0:00:11]}  Kxf2 {[%clk 0:00:17]} 52. Kg4 {[%clk 0:00:12]}  Ke3 {[%clk 0:00:18]} 53. Kg3 {[%clk 0:00:12]}  Kd3 {[%clk 0:00:19]} 54. Kf2 {[%clk 0:00:13]}  Kc3 {[%clk 0:00:19]} 55. Ke1 {[%clk 0:00:14]}  Kxb3 {[%clk 0:00:19]} 56. Kd1 {[%clk 0:00:15]}  Kc3 {[%clk 0:00:20]} 57. Kc1 {[%clk 0:00:15]}  b3 {[%clk 0:00:20]} 58. Kb1 {[%clk 0:00:16]}  b2 {[%clk 0:00:20]} 59. Ka2 {[%clk 0:00:16]}  Kc2 {[%clk 0:00:20]} 0-1


[Site "https://www.chess.com"]

[Event "Titled Tuesday Blitz October 11 Early 2022"]
[White "Shapiro, Daniel"]
[Black "Winterberg, Lukas"]
[WhiteFideId "2001780"]
[BlackFideId "24622702"]
[WhiteElo "2230"]
[BlackElo "2349"]
[Result "0-1"]
[Round "05"]
[TimeControl "180+1"]
[Date "2022.10.12"]
[WhiteClock "0:00:02"]
[BlackClock "0:00:06"]

1. d4 {[%clk 0:02:59]}  g6 {[%clk 0:03:00]} 2. c4 {[%clk 0:02:58]}  Bg7 {[%clk 0:03:01]} 3. Nf3 {[%clk 0:02:55]}  c5 {[%clk 0:03:01]} 4. d5 {[%clk 0:02:52]}  b5 {[%clk 0:03:01]} 5. cxb5 {[%clk 0:02:48]}  a6 {[%clk 0:03:02]} 6. e3 {[%clk 0:02:48]}  Nf6 {[%clk 0:03:01]} 7. b6 {[%clk 0:02:45]}  O-O {[%clk 0:03:00]} 8. Nc3 {[%clk 0:02:44]}  Qxb6 {[%clk 0:02:57]} 9. a4 {[%clk 0:02:43]}  a5 {[%clk 0:02:55]} 10. Ra3 {[%clk 0:02:33]}  e6 {[%clk 0:02:49]} 11. Rb3 {[%clk 0:02:30]}  Qd8 {[%clk 0:02:48]} 12. dxe6 {[%clk 0:02:20]}  fxe6 {[%clk 0:02:47]} 13. Qd6 {[%clk 0:02:16]}  Na6 {[%clk 0:02:34]} 14. Bb5 {[%clk 0:02:07]}  Ne8 {[%clk 0:02:09]} 15. Qg3 {[%clk 0:02:03]}  d5 {[%clk 0:02:09]} 16. O-O {[%clk 0:01:58]}  Nb4 {[%clk 0:02:00]} 17. e4 {[%clk 0:01:50]}  d4 {[%clk 0:01:55]} 18. Nb1 {[%clk 0:01:36]}  Nd6 {[%clk 0:01:55]} 19. e5 {[%clk 0:01:07]}  Nxb5 {[%clk 0:01:47]} 20. axb5 {[%clk 0:01:07]}  c4 {[%clk 0:01:47]} 21. Ra3 {[%clk 0:01:07]}  Qd5 {[%clk 0:01:46]} 22. Qh3 {[%clk 0:00:51]}  Bd7 {[%clk 0:00:43]} 23. Rd1 {[%clk 0:00:43]}  Bxe5 {[%clk 0:00:34]} 24. Bh6 {[%clk 0:00:35]}  Rf5 {[%clk 0:00:32]} 25. Ng5 {[%clk 0:00:25]}  Bxb5 {[%clk 0:00:12]} 26. Rg3 {[%clk 0:00:17]}  Ra7 {[%clk 0:00:11]} 27. Nd2 {[%clk 0:00:12]}  Bxg3 {[%clk 0:00:11]} 28. hxg3 {[%clk 0:00:05]}  c3 {[%clk 0:00:06]} 29. Ndf3 {[%clk 0:00:02]}  c2 {[%clk 0:00:06]} 0-1


[Site "https://www.chess.com"]

[Event "Titled Tuesday Blitz October 11 Early 2022"]
[White "Shimanov, Aleksandr"]
[Black "Klukin, Kirill"]
[WhiteFideId "4198603"]
[BlackFideId "24199273"]
[WhiteElo "2605"]
[BlackElo "2290"]
[Result "1-0"]
[Round "05"]
[TimeControl "180+1"]
[Date "2022.10.11"]
[WhiteClock "0:00:45"]
[BlackClock "0:00:06"]

1. e4 {[%clk 0:02:59]}  c5 {[%clk 0:02:59]} 2. Nf3 {[%clk 0:02:59]}  g6 {[%clk 0:02:59]} 3. d4 {[%clk 0:02:52]}  cxd4 {[%clk 0:03:00]} 4. Nxd4 {[%clk 0:02:52]}  Bg7 {[%clk 0:03:00]} 5. Nc3 {[%clk 0:02:52]}  Nc6 {[%clk 0:03:00]} 6. Nxc6 {[%clk 0:02:52]}  bxc6 {[%clk 0:02:59]} 7. Bc4 {[%clk 0:02:53]}  d6 {[%clk 0:02:45]} 8. O-O {[%clk 0:02:52]}  Nf6 {[%clk 0:02:45]} 9. Bg5 {[%clk 0:02:52]}  O-O {[%clk 0:02:45]} 10. Qd2 {[%clk 0:02:49]}  Rb8 {[%clk 0:02:44]} 11. Bb3 {[%clk 0:02:49]}  Nd7 {[%clk 0:02:32]} 12. Rfe1 {[%clk 0:02:47]}  Nc5 {[%clk 0:02:31]} 13. Bh6 {[%clk 0:02:46]}  Bxh6 {[%clk 0:02:08]} 14. Qxh6 {[%clk 0:02:47]}  e5 {[%clk 0:02:07]} 15. Rad1 {[%clk 0:02:43]}  Qe7 {[%clk 0:02:05]} 16. Rd2 {[%clk 0:02:28]}  Be6 {[%clk 0:02:01]} 17. Red1 {[%clk 0:02:26]}  Rfd8 {[%clk 0:02:01]} 18. Qe3 {[%clk 0:02:17]}  a5 {[%clk 0:01:53]} 19. h3 {[%clk 0:02:10]}  Kg7 {[%clk 0:01:42]} 20. f4 {[%clk 0:01:58]}  f6 {[%clk 0:01:11]} 21. Kh2 {[%clk 0:01:52]}  Bxb3 {[%clk 0:01:02]} 22. axb3 {[%clk 0:01:50]}  Ne6 {[%clk 0:01:03]} 23. Ne2 {[%clk 0:01:46]}  a4 {[%clk 0:00:58]} 24. bxa4 {[%clk 0:01:39]}  Rxb2 {[%clk 0:00:58]} 25. Qa3 {[%clk 0:01:38]}  Rb7 {[%clk 0:00:43]} 26. fxe5 {[%clk 0:01:31]}  fxe5 {[%clk 0:00:39]} 27. Rxd6 {[%clk 0:01:23]}  Nd4 {[%clk 0:00:18]} 28. Nxd4 {[%clk 0:01:13]}  Rxd6 {[%clk 0:00:17]} 29. Nf5+ {[%clk 0:01:13]}  gxf5 {[%clk 0:00:18]} 30. Rxd6 {[%clk 0:01:13]}  f4 {[%clk 0:00:15]} 31. Qd3 {[%clk 0:01:10]}  Qg5 {[%clk 0:00:10]} 32. a5 {[%clk 0:01:07]}  Rf7 {[%clk 0:00:10]} 33. Qf3 {[%clk 0:01:00]}  c5 {[%clk 0:00:08]} 34. a6 {[%clk 0:00:47]}  h5 {[%clk 0:00:06]} 35. Rb6 {[%clk 0:00:45]} 1-0


[Site "https://www.chess.com"]

[Event "Titled Tuesday Blitz October 11 Early 2022"]
[White "Shohat, Yotam"]
[Black "Svane, Rasmus"]
[WhiteFideId "2813955"]
[BlackFideId "4657101"]
[WhiteElo "2199"]
[BlackElo "2674"]
[Result "0-1"]
[Round "05"]
[TimeControl "180+1"]
[Date "2022.10.12"]
[WhiteClock "0:00:02"]
[BlackClock "0:00:16"]

1. e4 {[%clk 0:03:00]}  c6 {[%clk 0:02:15]} 2. d4 {[%clk 0:03:00]}  d5 {[%clk 0:02:16]} 3. exd5 {[%clk 0:02:59]}  cxd5 {[%clk 0:02:16]} 4. c4 {[%clk 0:02:59]}  Nf6 {[%clk 0:02:15]} 5. Nc3 {[%clk 0:03:00]}  Nc6 {[%clk 0:02:14]} 6. Nf3 {[%clk 0:02:58]}  a6 {[%clk 0:02:14]} 7. cxd5 {[%clk 0:02:51]}  Nxd5 {[%clk 0:02:15]} 8. Bc4 {[%clk 0:02:51]}  Be6 {[%clk 0:02:15]} 9. Bb3 {[%clk 0:02:45]}  Na5 {[%clk 0:02:15]} 10. Bc2 {[%clk 0:02:39]}  g6 {[%clk 0:02:14]} 11. O-O {[%clk 0:02:37]}  Bg7 {[%clk 0:02:15]} 12. Re1 {[%clk 0:02:36]}  O-O {[%clk 0:02:13]} 13. Rxe6 {[%clk 0:02:14]}  fxe6 {[%clk 0:02:14]} 14. Qe2 {[%clk 0:02:14]}  Qd7 {[%clk 0:01:49]} 15. Ne4 {[%clk 0:01:58]}  b6 {[%clk 0:01:36]} 16. Neg5 {[%clk 0:01:51]}  Rf6 {[%clk 0:01:20]} 17. Ne5 {[%clk 0:01:24]}  Qe8 {[%clk 0:01:04]} 18. Ng4 {[%clk 0:01:23]}  Rc8 {[%clk 0:00:58]} 19. Bd3 {[%clk 0:01:07]}  Nb4 {[%clk 0:00:56]} 20. Nxf6+ {[%clk 0:00:42]}  exf6 {[%clk 0:00:57]} 21. Ne4 {[%clk 0:00:43]}  Nxd3 {[%clk 0:00:54]} 22. Qxd3 {[%clk 0:00:39]}  Qc6 {[%clk 0:00:51]} 23. Be3 {[%clk 0:00:30]}  Qc2 {[%clk 0:00:47]} 24. Qxa6 {[%clk 0:00:23]}  Rf8 {[%clk 0:00:38]} 25. Qxb6 {[%clk 0:00:19]}  Qxe4 {[%clk 0:00:32]} 26. Qxa5 {[%clk 0:00:19]}  f5 {[%clk 0:00:33]} 27. Re1 {[%clk 0:00:08]}  f4 {[%clk 0:00:33]} 28. Bd2 {[%clk 0:00:08]}  Qd3 {[%clk 0:00:28]} 29. Qc3 {[%clk 0:00:08]}  Qa6 {[%clk 0:00:25]} 30. Qb3 {[%clk 0:00:06]}  Kh8 {[%clk 0:00:22]} 31. Rxe6 {[%clk 0:00:05]}  Qc8 {[%clk 0:00:19]} 32. Re1 {[%clk 0:00:04]}  f3 {[%clk 0:00:20]} 33. gxf3 {[%clk 0:00:03]}  Qh3 {[%clk 0:00:20]} 34. Bg5 {[%clk 0:00:02]}  h6 {[%clk 0:00:20]} 35. Be7 {[%clk 0:00:01]}  Rxf3 {[%clk 0:00:18]} 36. Qe6 {[%clk 0:00:02]}  Rf5 {[%clk 0:00:18]} 37. Qe3 {[%clk 0:00:02]}  Qg4+ {[%clk 0:00:16]} 38. Qg3 {[%clk 0:00:02]}  Qxd4 {[%clk 0:00:16]} 39. Bf8 {[%clk 0:00:01]}  Bxf8 {[%clk 0:00:15]} 40. Qxg6 {[%clk 0:00:02]}  Rg5+ {[%clk 0:00:16]} 0-1


[Site "https://www.chess.com"]

[Event "Titled Tuesday Blitz October 11 Early 2022"]
[White "Shvedova, Alexandra"]
[Black "Chernobay, Artem"]
[WhiteFideId "54154782"]
[BlackFideId "4167406"]
[WhiteElo "2090"]
[BlackElo "2473"]
[Result "0-1"]
[Round "05"]
[TimeControl "180+1"]
[Date "2022.10.12"]
[WhiteClock "0:00:46"]
[BlackClock "0:00:22"]

1. Nf3 {[%clk 0:03:00]}  Nf6 {[%clk 0:02:58]} 2. g3 {[%clk 0:03:01]}  g6 {[%clk 0:02:57]} 3. Bg2 {[%clk 0:03:01]}  Bg7 {[%clk 0:02:58]} 4. O-O {[%clk 0:03:02]}  O-O {[%clk 0:02:58]} 5. d4 {[%clk 0:03:02]}  d6 {[%clk 0:02:59]} 6. c4 {[%clk 0:03:01]}  c6 {[%clk 0:02:58]} 7. Nc3 {[%clk 0:03:01]}  Nbd7 {[%clk 0:02:58]} 8. e4 {[%clk 0:03:01]}  e5 {[%clk 0:02:57]} 9. d5 {[%clk 0:03:01]}  c5 {[%clk 0:02:52]} 10. b3 {[%clk 0:02:47]}  a6 {[%clk 0:02:51]} 11. a3 {[%clk 0:02:47]}  Rb8 {[%clk 0:02:49]} 12. Qd3 {[%clk 0:02:44]}  b5 {[%clk 0:02:40]} 13. Re1 {[%clk 0:02:34]}  bxc4 {[%clk 0:02:19]} 14. bxc4 {[%clk 0:02:35]}  Nb6 {[%clk 0:02:10]} 15. a4 {[%clk 0:02:30]}  Nbd7 {[%clk 0:01:57]} 16. a5 {[%clk 0:02:29]}  Qc7 {[%clk 0:01:52]} 17. h4 {[%clk 0:02:23]}  Nh5 {[%clk 0:01:44]} 18. Bd2 {[%clk 0:02:07]}  h6 {[%clk 0:01:40]} 19. Na4 {[%clk 0:01:42]}  f5 {[%clk 0:01:37]} 20. Reb1 {[%clk 0:01:40]}  Ndf6 {[%clk 0:01:26]} 21. Nc3 {[%clk 0:01:29]}  Rxb1+ {[%clk 0:01:17]} 22. Qxb1 {[%clk 0:01:24]}  fxe4 {[%clk 0:01:11]} 23. Nxe4 {[%clk 0:01:25]}  Nxe4 {[%clk 0:01:11]} 24. Qxe4 {[%clk 0:01:26]}  Bf5 {[%clk 0:01:11]} 25. Qe2 {[%clk 0:01:23]}  e4 {[%clk 0:01:09]} 26. Re1 {[%clk 0:01:18]}  exf3 {[%clk 0:01:08]} 27. Bxf3 {[%clk 0:01:19]}  Nf6 {[%clk 0:01:01]} 28. g4 {[%clk 0:01:19]}  Bc8 {[%clk 0:00:59]} 29. g5 {[%clk 0:01:15]}  hxg5 {[%clk 0:00:56]} 30. hxg5 {[%clk 0:01:16]}  Re8 {[%clk 0:00:45]} 31. Qf1 {[%clk 0:01:11]}  Rxe1 {[%clk 0:00:43]} 32. Qxe1 {[%clk 0:01:12]}  Nd7 {[%clk 0:00:39]} 33. Qe8+ {[%clk 0:01:10]}  Nf8 {[%clk 0:00:40]} 34. Be4 {[%clk 0:01:04]}  Bf5 {[%clk 0:00:36]} 35. Bxf5 {[%clk 0:01:00]}  gxf5 {[%clk 0:00:37]} 36. Qa8 {[%clk 0:00:56]}  Qe7 {[%clk 0:00:33]} 37. Qxa6 {[%clk 0:00:56]}  Qe2 {[%clk 0:00:32]} 38. Be3 {[%clk 0:00:54]}  Qg4+ {[%clk 0:00:31]} 39. Kf1 {[%clk 0:00:54]}  f4 {[%clk 0:00:31]} 40. Qxd6 {[%clk 0:00:49]}  fxe3 {[%clk 0:00:29]} 41. fxe3 {[%clk 0:00:50]}  Qf3+ {[%clk 0:00:29]} 42. Ke1 {[%clk 0:00:49]}  Qxe3+ {[%clk 0:00:29]} 43. Kd1 {[%clk 0:00:50]}  Qd3+ {[%clk 0:00:28]} 44. Ke1 {[%clk 0:00:50]}  Bc3+ {[%clk 0:00:27]} 45. Kf2 {[%clk 0:00:50]}  Bd4+ {[%clk 0:00:27]} 46. Kg2 {[%clk 0:00:51]}  Qe2+ {[%clk 0:00:26]} 47. Kh3 {[%clk 0:00:51]}  Qf1+ {[%clk 0:00:26]} 48. Kh2 {[%clk 0:00:50]}  Qe2+ {[%clk 0:00:24]} 49. Kh1 {[%clk 0:00:49]}  Be5 {[%clk 0:00:24]} 50. Qh6 {[%clk 0:00:46]}  Qf1# {[%clk 0:00:22]} 0-1


[Site "https://www.chess.com"]

[Event "Titled Tuesday Blitz October 11 Early 2022"]
[White "Silva, Pedro Gil Ferreira Da"]
[Black "Shandrygin, Nikita"]
[WhiteFideId "1946102"]
[BlackFideId "24198668"]
[WhiteElo "2170"]
[BlackElo "2323"]
[Result "0-1"]
[Round "05"]
[TimeControl "180+1"]
[Date "2022.10.12"]
[WhiteClock "0:01:49"]
[BlackClock "0:02:06"]

1. e4 {[%clk 0:03:00]}  c5 {[%clk 0:02:59]} 2. Nf3 {[%clk 0:02:56]}  e6 {[%clk 0:03:00]} 3. d4 {[%clk 0:02:55]}  cxd4 {[%clk 0:03:01]} 4. Nxd4 {[%clk 0:02:55]}  Nf6 {[%clk 0:03:02]} 5. Nc3 {[%clk 0:02:52]}  Nc6 {[%clk 0:03:02]} 6. g3 {[%clk 0:02:50]}  Qc7 {[%clk 0:03:00]} 7. Bg2 {[%clk 0:02:50]}  a6 {[%clk 0:03:00]} 8. O-O {[%clk 0:02:49]}  h6 {[%clk 0:03:01]} 9. Re1 {[%clk 0:02:49]}  Nxd4 {[%clk 0:02:58]} 10. Qxd4 {[%clk 0:02:50]}  Bc5 {[%clk 0:02:59]} 11. Qd3 {[%clk 0:02:48]}  d6 {[%clk 0:02:59]} 12. h3 {[%clk 0:02:47]}  O-O {[%clk 0:02:58]} 13. Bf4 {[%clk 0:02:46]}  e5 {[%clk 0:02:56]} 14. Be3 {[%clk 0:02:46]}  Be6 {[%clk 0:02:56]} 15. Rad1 {[%clk 0:02:45]}  Rfd8 {[%clk 0:02:55]} 16. Bxc5 {[%clk 0:02:28]}  Qxc5 {[%clk 0:02:56]} 17. Nd5 {[%clk 0:02:23]}  Nxd5 {[%clk 0:02:42]} 18. exd5 {[%clk 0:02:24]}  Bd7 {[%clk 0:02:43]} 19. c3 {[%clk 0:02:19]}  Rac8 {[%clk 0:02:30]} 20. Re4 {[%clk 0:02:08]}  Bf5 {[%clk 0:02:27]} 21. Rde1 {[%clk 0:02:06]}  Rf8 {[%clk 0:02:13]} 22. g4 {[%clk 0:01:55]}  Bxe4 {[%clk 0:02:13]} 23. Rxe4 {[%clk 0:01:56]}  f5 {[%clk 0:02:08]} 24. gxf5 {[%clk 0:01:53]}  Rxf5 {[%clk 0:02:09]} 25. Re2 {[%clk 0:01:51]}  Rcf8 {[%clk 0:02:07]} 26. Be4 {[%clk 0:01:49]}  Rxf2 {[%clk 0:02:06]} 0-1


[Site "https://www.chess.com"]